[Event "Superbet Blitz Poland 2023"]
[Site "Warsaw"]
[Date "2023.05.25"]
[Round "10"]
[White "Duda, Jan-Krzysztof"]
[Black "Rapport, Richard"]
[Result "1-0"]
[ECO "A61"]
[WhiteElo "2724"]
[BlackElo "2745"]
[Annotator "TA"]
[PlyCount "147"]
[EventDate "2023.05.24"]
[EventType "tourn"]
[EventCountry "POL"]
[SourceTitle "playchess.com"]
[Source "ChessBase"]
[SourceQuality "1"]
[TimeControl "300+2"]

{[%evp 18,147,33,26,39,25,29,42,47,29,32,29,42,22,25,0,0,-2,0,-37,-23,-47,-26,-31,-37,-47,-54,-50,-45,-50,-49,-49,-89,-78,-8,-8,-8,-16,-24,-26,558,8,36,0,0,0,0,0,8,8,127,104,112,71,70,68,238,277,606,596,533,0,0,0,60,63,66,60,426,394,29986,29987,29987,29988,29991,126,129,0,29951,29954,4116,151,29962,29963,29963,29964,29964,29966,29966,29967,29967,29968,29966,29968,29970,29969,29969,29971,29970,29971,29968,29971,29969,29971,29971,29972,29971,29971,29972,29972,29973,29973,29972,29973,29975,29975,29979,29980,29980,29979,29981,29982,29982,29977,29983,29984,29984,29985,29985,29986,29987,29988]} 1. d4 {[%emt 0:00:02]} Nf6 {[%emt 0:00:09]} 2. c4 {[%emt 0:00:01]} c5 {[%emt 0:00:05]} 3. d5 {[%emt 0:00:02]} e6 {[%emt 0:00:01]} 4. Nc3 {[%emt 0:00:05]} exd5 {[%emt 0:00:01]} 5. cxd5 {[%emt 0:00:01]} d6 {[%emt 0:00:02]} 6. Nf3 {[%emt 0:00:14]} g6 {[%emt 0:00:01]} 7. Bf4 {[%emt 0:00:02]} a6 {[%emt 0:00:01]} 8. a4 {[%emt 0:00:03]} Bg7 {[%emt 0:00:02]} 9. h3 {[%emt 0:00:10]} O-O {[%emt 0:00:02]} 10. e3 {[%emt 0:00:01][%cal Be2e3,Be3e4][%mdl 32]} Ne8 {[%emt 0:00:03] A61: Modern Benoni: Nf3 without early e4.} 11. Be2 {[%emt 0:00:05]} Nd7 {[%emt 0:00:02]} 12. O-O {[%emt 0:00:04]} b6 {[%emt 0:00:01] White is slightly better. 12...Ne5 is setting a new trend.} 13. Nd2 {[%emt 0:00:26]} Ne5 {[%emt 0:00:02]} 14. Qc2 $5 {[%emt 0:00:19][%mdl 4] [#] Leaves trodden paths.} Bf5 $146 {[%emt 0:00:13]} ({Predecessor:} 14... f5 15. Bh2 g5 16. f4 gxf4 17. exf4 Ng6 18. Nf3 h6 19. Rfe1 Nc7 20. Qd2 Bd7 {½-½ Schenderowitsch,M (2306)-Cosman,A (2155) Mirandela op 3rd 2022 (7)}) 15. e4 {[%emt 0:00:02]} Bd7 {[%emt 0:00:02]} 16. Be3 {[%emt 0:00:35] Strongly threatening f4.} f5 $1 {[%emt 0:00:07]} 17. f4 {[%emt 0:00:03]} Nf7 {[%emt 0:00:02]} 18. Bd3 {[%emt 0:00:19][%cal Re4f5]} fxe4 {[%emt 0:00:13]} 19. Ndxe4 {[%emt 0:00:04]} Nc7 $1 {[%emt 0:00:12]} 20. Ng3 {[%emt 0:01:02]} Qh4 {[%emt 0:00:45]} 21. Nge2 {[%emt 0:00:29]} b5 {[%emt 0:00:31]} 22. axb5 {[%emt 0:00:10]} axb5 {[%emt 0:00:01]} 23. Rxa8 {[%emt 0:00:07]} Rxa8 {[%emt 0:00:03]} 24. f5 {[%emt 0:00:06]} Ne5 {[%emt 0:00:03]} 25. fxg6 {[%emt 0:00:04]} hxg6 {[%emt 0:00:02]} (25... b4 $17 26. Bf2 (26. gxh7+ $2 Kh8 $19) 26... Qe7) 26. Bxg6 $11 {[%emt 0:00:10][%cal Oc3e4]} b4 {[%emt 0:00:04]} 27. Ne4 {[%emt 0:00:04]} b3 {[%emt 0:00:32]} 28. Qb1 {[%emt 0:00:07]} Bxh3 $2 {[%emt 0:00:42][%mdl 8192]} (28... Nxg6 $11 {and Black has nothing to worry.} 29. Nf6+ {[%mdl 64] Discovered Attack, Decoy} (29. Nxd6 $2 Ne7 $19) 29... Bxf6 30. Qxg6+ Bg7 31. Qf7+ Kh8) 29. gxh3 $2 {[%emt 0:00:18]} (29. Nxd6 Bxg2 30. Kxg2 Qg4+ 31. Kf2 (31. Ng3 Nxg6 32. Qd1 Qxd1 $17) 31... Qh4+ 32. Kg2 Qg4+ 33. Kf2 (33. Ng3 Nxg6 34. Qd1 Nh4+ 35. Kh2 Qxd1 $17) 33... Nxd5 34. Bh7+ (34. Qe4 $2 Rf8+ 35. Ke1 Rxf1+ 36. Kxf1 Qh3+ 37. Ke1 Nxe3 $19) 34... Kh8 $11) ({White must play} 29. Bg5 $18 Qg4 30. Bh7+ (30. Nxd6 $2 Qxg2#) (30. Nf6+ Bxf6 31. Bh7+ Kf8 $11) 30... Kh8 31. N2g3) 29... Qxh3 {[%emt 0:00:01]} 30. N4g3 {[%emt 0:00:23]} (30. N2g3 $5 Ng4 31. Rf2 $11) 30... Ng4 {[%emt 0:00:09][%csl Gg4][%cal Rh3h2]} (30... Nxd5 $2 31. Qe4 (31. Bf5 Ng4 $18) 31... Nc7 32. Bf5 $18) 31. Rf2 {[%emt 0:00:01] Wards off Qh2+} Nxf2 {[%emt 0:00:20]} (31... Nxe3 $2 32. Bf7+ Kh8 33. Rh2 $18) 32. Bxf2 {[%emt 0:00:01] This pair of bishops is nice.} Ra2 {[%emt 0:00:36]} (32... Nxd5 $2 33. Be4 Qe6 34. Qd1 $18) 33. Bf5 {[%emt 0:00:06]} (33. Nf4 $5 Qg4 $8 34. Bh7+ Kf7 35. Bg6+ Kg8 36. Bh7+ Kf7 37. Bg6+ Kg8 $11) 33... Qh6 {[%emt 0:00:02] [#]} (33... Rxb2 $2 34. Qxb2 $18) (33... Qh4 $11) 34. Qe4 $1 $16 {[%emt 0:00:06]} Qf6 {[%emt 0:00:44] Dodges Qe7} (34... Bxb2 $2 35. Qe7 Ra8 36. Qxc7 $18) 35. Be6+ {[%emt 0:00:09]} Nxe6 {[%emt 0:00:03]} 36. dxe6 {[%emt 0:00:02] aiming for e7.} Qe5 $2 {[%emt 0:00:02]} (36... Qxb2 $2 37. e7 Qa1+ 38. Kh2 $18) (36... Ra7 $1 $14) 37. Qg6 $18 {[%emt 0:00:04] Black must now prevent Ne4.} Ra1+ $2 {[%emt 0:00:01]} (37... Qf6 38. Qe4 (38. Qe8+ Bf8 $11) 38... Qe5) 38. Kg2 {[%emt 0:00:03]} Ra7 {[%emt 0:00:04]} 39. Qe8+ $2 {[%emt 0:00:03]} (39. Nh5 $18) 39... Bf8 {[%emt 0:00:01]} 40. Kf3 {[%emt 0:00:04] Hoping for Nf4.} Re7 {[%emt 0:00:04]} (40... Rg7 $2 41. Nf4 Re7 42. Qg6+ Rg7 43. Qe8 $18 (43. e7 Qxe7 44. Qf5 Qg5 $15)) (40... Qd5+ $11 41. Ne4 Re7 42. Qg6+ Rg7) 41. Qg6+ $14 {[%emt 0:00:01]} Rg7 {[%emt 0:00:01]} 42. Qf5 {[%emt 0:00:03] Qxe5 would be deadly. Really sharp!} Qxb2 {[%emt 0:00:03][%mdl 8192]} (42... Re7 $1 $14) 43. Nh5 $18 {[%emt 0:00:01][%cal Of2d4] Bd4! would kill now.} Qc2 $2 {[%emt 0:00:08]} (43... Be7 $18 44. Be1 (44. Bd4 cxd4 45. Nxg7 d3 $11) 44... Qe5 45. Nxg7 Qxg7) 44. Nf6+ {[%emt 0:00:02]} Kh8 {[%emt 0:00:00]} 45. Qh5+ {[%emt 0:00:04]} Rh7 46. Nxh7 $2 {[%emt 0:00:02]} (46. e7 {mates} Qd3+ 47. Be3 Bxe7 48. Qe8+ (48. Qxh7+ Qxh7 49. Nxh7 b2 $11) 48... Kg7 49. Qxe7+ Kg6 50. Nf4+ Kf5 51. Qe6+ Kg5 52. Nxd3+ {[%mdl 64] Discovered Attack} Kg6 53. Ne8+ {[%mdl 64] Discovered Attack} Kh5 54. Qg4#) 46... Qxh7 $16 {[%emt 0:00:03]} 47. Qe8 {[%emt 0:00:03]} ({Better is} 47. Qxh7+ $16 Kxh7 48. Nc3) 47... Qd3+ $2 {[%emt 0:00:04][%mdl 8192] [#] White now steadily converts the win.} (47... Qf5+ $2 48. Nf4 Kh7 49. e7 $18) (47... Kg8 $11) 48. Be3 $1 {[%emt 0:00:01]} Qf5+ {[%emt 0:00:03]} 49. Bf4 $2 {[%emt 0:00:02]} ({Worse is} 49. Kg3 b2 50. e7 (50. Nc3 Kh7 $11) 50... Qe5+ 51. Nf4 Qxe3+ 52. Kg4 Qg1+ 53. Kh4 Qf2+ 54. Kg4 Qg1+ 55. Kh4 Qh1+ 56. Kg5 Qg1+ 57. Kh4 $11) (49. Nf4 $18 {is the precise move to win. White wants to mate with e7.} Kg7 50. e7) 49... b2 $2 {[%emt 0:00:02]} (49... Kh7 $16 50. e7 Bh6) 50. e7 {[%emt 0:00:01][%mdl 64] Pin. White mates.} Kg8 {[%emt 0:00:03]} 51. exf8=Q+ {[%emt 0:00:03]} Qxf8 {[%emt 0:00:01]} 52. Qxf8+ {[%emt 0:00:02]} Kxf8 {[%emt 0:00:01]} 53. Bxd6+ {[%emt 0:00:01]} Kf7 {[%emt 0:00:01]} 54. Nc3 $1 {[%emt 0:00:01]} (54. Bxc5 $2 {too greedy.} b1=Q 55. Bd4 Ke6 $19) 54... Ke6 {[%emt 0:00:03]} 55. Bxc5 {[%emt 0:00:01]} Kd7 {[%emt 0:00:03]} 56. Nb1 {[%emt 0:00:02]} Kc6 {[%emt 0:00:01]} 57. Ba3 {[%emt 0:00:01]} Kb5 {[%emt 0:00:00]} 58. Ke3 {[%emt 0:00:03]} Kc4 {[%emt 0:00:01]} 59. Bxb2 {[%emt 0:00:01]} Kd5 {[%emt 0:00:01]} 60. Nd2 {[%emt 0:00:02]} Kc5 {[%emt 0:00:01]} 61. Ke4 {[%emt 0:00:02]} Kd6 {[%emt 0:00:01]} 62. Bd4 {[%emt 0:00:02]} Kc6 {[%emt 0:00:01]} 63. Ke5 {[%emt 0:00:01]} Kc7 {[%emt 0:00:03]} 64. Kd5 {[%emt 0:00:04]} Kb7 {[%emt 0:00:01]} 65. Nc4 {[%emt 0:00:02]} Kc7 {[%emt 0:00:02]} 66. Nd6 {[%emt 0:00:02]} Kb8 {[%emt 0:00:00]} 67. Kc6 {[%emt 0:00:02]} Ka8 {[%emt 0:00:01]} 68. Nb5 {[%emt 0:00:01]} Kb8 {[%emt 0:00:00]} 69. Nc7 {[%emt 0:00:01]} Kc8 {[%emt 0:00:00]} 70. Ba7 {[%emt 0:00:01]} Kd8 {[%emt 0:00:01]} 71. Nd5 {[%emt 0:00:01]} Ke8 {[%emt 0:00:01]} 72. Kd6 {[%emt 0:00:01]} Kf7 {[%emt 0:00:00]} 73. Ne7 {[%emt 0:00:01]} Kf6 {[%emt 0:00:01]} 74. Be3 {[%emt 0:00:01] Artfully played by Duda.   Weighted Error Value: White=0.42/Black=0.65} 1-0

[Event "Superbet Blitz Poland 2023"]
[Site "Warsaw"]
[Date "2023.05.25"]
[Round "10"]
[White "Shevchenko, Kirill"]
[Black "Deac, Bogdan-Daniel"]
[Result "0-1"]
[ECO "A14"]
[WhiteElo "2684"]
[BlackElo "2700"]
[Annotator "TA"]
[PlyCount "114"]
[EventDate "2023.05.24"]
[EventType "tourn"]
[EventCountry "POL"]
[SourceTitle "playchess.com"]
[Source "ChessBase"]
[SourceQuality "1"]
[TimeControl "300+2"]

{[%evp 13,114,23,38,20,27,0,15,6,20,0,4,-49,-46,-50,-60,-64,-70,-83,-83,-133,-133,-200,-167,-192,-174,-326,-208,-217,-225,-211,-210,-210,-212,-283,-280,-268,-217,-225,-223,-218,-185,-194,-183,-339,-348,-308,-257,-482,-478,-631,-623,-637,-622,-633,-625,-740,-311,-313,-313,-556,-389,-1031,-779,-864,-847,-899,-519,-518,-515,-500,-507,-491,-496,-494,-481,-473,-449,-891,-875,-915,-864,-1495,-1479,-1454,-1421,-6207,-1569,-29974,-29975,-29984,-29985,-29985,-29986,-29986,-29987,-29987,-29988,-29988,-29989,-29989,-29990,-29990,-1708]} 1. c4 {[%emt 0:00:01]} e6 {[%emt 0:00:03]} 2. g3 {[%emt 0:00:05]} d5 {[%emt 0:00:01]} 3. Bg2 {[%emt 0:00:01]} Nf6 {[%emt 0:00:01]} 4. Nf3 {[%emt 0:00:01]} Be7 {[%emt 0:00:01]} 5. O-O {[%emt 0:00:01]} O-O {[%emt 0:00:02]} 6. b3 {[%emt 0:00:01]} a5 {[%emt 0:00:09]} 7. Nc3 {[%emt 0:00:08]} c6 {[%emt 0:00:18]} 8. d4 {[%emt 0:00:12] A14: English Opening: 1...e6 with b3 by White.} b6 {[%emt 0:00:05]} 9. Ne5 {[%emt 0:00:10]} Nfd7 {[%emt 0:00:14][%cal Bf6d7,Bd7b6,Bb6c4][%mdl 32] [#] 9...Bb7 is a critical line.} 10. Nd3 $146 {[%emt 0:00:52] The position is equal.} ({Predecessor:} 10. Nxd7 Nxd7 11. e4 dxc4 12. bxc4 Ba6 13. Qb3 e5 14. Rd1 exd4 15. Rxd4 Qe8 16. Rd1 {0-1 Samadov,R (2450)-Bluebaum,M (2651) Speed Chess Q2 blitz 2022 (10)}) 10... Ba6 {[%emt 0:00:21]} 11. Nb2 {[%emt 0:00:26]} b5 {[%emt 0:00:15]} 12. e4 {[%emt 0:00:04]} (12. a3 $11) 12... bxc4 $15 {[%emt 0:00:23]} 13. bxc4 {[%emt 0:00:01]} Nb6 $1 {[%emt 0:00:29]} 14. Qg4 {[%emt 0:00:38]} Kh8 {[%emt 0:00:26]} 15. exd5 {[%emt 0:00:11]} cxd5 {[%emt 0:00:17]} 16. Bf4 {[%emt 0:00:23]} (16. c5 $142 Bxf1 17. Bxf1) 16... Nxc4 $17 {[%emt 0:00:09]} ({Weaker is} 16... Bxc4 17. Nxc4 Nxc4 18. a4 $17) 17. Nba4 {[%emt 0:00:01]} (17. Nxc4 $17 Bxc4 18. Rfb1) 17... Nc6 $19 {[%emt 0:00:18]} 18. Rfd1 {[%emt 0:00:01]} Bf6 {[%emt 0:00:06]} 19. Ne2 $2 {[%emt 0:00:53]} (19. Bc1) 19... Nd6 {[%emt 0:00:27]} 20. Rac1 {[%emt 0:00:33]} Bxe2 21. Qxe2 {[%emt 0:00:01]} Nxd4 {[%emt 0:00:42]} 22. Qd3 {[%emt 0:00:01]} Rb8 {[%emt 0:00:17]} 23. Nc5 {[%emt 0:00:03]} Rb2 {[%emt 0:00:09] [#] ...Ne2+ would be deadly.} 24. Rd2 {[%emt 0:00:06] Inhibits Ne2+.} Rxd2 {[%emt 0:00:10]} 25. Bxd2 {[%emt 0:00:05]} Nc4 {[%emt 0:00:11]} 26. Bc3 {[%emt 0:00:04]} Nf5 {[%emt 0:00:02]} 27. Bxf6 {[%emt 0:00:01]} gxf6 {[%emt 0:00:06]} 28. h4 $2 {[%emt 0:00:11]} (28. Bh3) 28... Qe7 {[%emt 0:00:04]} 29. Nb3 {[%emt 0:00:09]} Rb8 {[%emt 0:00:03]} 30. Bxd5 $2 {[%emt 0:00:14]} (30. Qc3 {was necessary.}) 30... Ne5 {[%emt 0:00:02] A dynamic duo of knights.} 31. Qc2 {[%emt 0:00:07]} a4 {[%emt 0:00:01][%cal Oa4b3]} 32. Nd2 {[%emt 0:00:09]} Nd4 {[%emt 0:00:03]} 33. Qe4 {[%emt 0:00:01]} Qa7 {[%emt 0:00:04]} ({Worse is} 33... exd5 34. Qxd4 Qb4 35. Qxb4 (35. Qxd5 $2 {perishes.} Qxd2 {[%mdl 64] Remove Defender, Decoy} 36. Qxd2 Nf3+ 37. Kg2 Nxd2 $19) 35... Rxb4 36. Rc2 $17) 34. Bc4 {[%emt 0:00:02]} Rd8 {[%emt 0:00:06]} (34... Rb2 $142 35. Qf4 Ndf3+ {[%mdl 64] Double Attack} 36. Kg2 Kg7) 35. Kg2 {[%emt 0:00:01] Dodges Ndf3} Kg7 {[%emt 0:00:01]} 36. a3 $2 {[%emt 0:00:02]} (36. Be2) 36... Qc5 {[%emt 0:00:02] [#] Strongly threatening ...Nb3.} 37. Kh3 $2 {[%emt 0:00:10]} (37. Qe3 Qc7 38. Kh3) 37... Qxa3 {[%emt 0:00:02]} 38. Re1 {[%emt 0:00:01]} Qc3 {[%emt 0:00:01]} 39. Qf4 {[%emt 0:00:04]} Ng6 {[%emt 0:00:02]} 40. Qxf6+ {[%emt 0:00:04]} Kxf6 {[%emt 0:00:01]} 41. Ne4+ {[%emt 0:00:00]} Kg7 {[%emt 0:00:01] ( -> ...Nf4+)} 42. Nxc3 {[%emt 0:00:01]} Rc8 {[%emt 0:00:01]} 43. Nxa4 {[%emt 0:00:03]} Rxc4 {[%emt 0:00:01]} 44. Nb6 {[%emt 0:00:01]} Rc2 {[%emt 0:00:02]} 45. Rf1 {[%emt 0:00:03]} (45. Kg2 $142) 45... h5 {[%emt 0:00:02] White must now prevent ...Ne5.} 46. Nd7 {[%emt 0:00:01]} e5 {[%emt 0:00:03][%cal Be6e5,Be5e4][%mdl 32]} 47. Kg2 {[%emt 0:00:04]} e4 {[%emt 0:00:03]} 48. Re1 {[%emt 0:00:00]} f5 {[%emt 0:00:02] Threatens to win with ...Kf7.} 49. Rd1 {[%emt 0:00:01]} Nf3 {[%emt 0:00:02]} 50. Rd6 {[%emt 0:00:01]} Rc1 {[%emt 0:00:04] Black mates.} 51. Nf6 {[%emt 0:00:02]} Nge5 {[%emt 0:00:04]} 52. Nxh5+ {[%emt 0:00:02]} Kf7 {[%emt 0:00:02]} 53. Rf6+ {[%emt 0:00:01]} Ke7 {[%emt 0:00:01]} 54. Rxf5 {[%emt 0:00:01]} Rg1+ {[%emt 0:00:02]} 55. Kh3 {[%emt 0:00:00]} Rh1+ {[%emt 0:00:01]} 56. Kg2 {[%emt 0:00:01]} Rh2+ {[%emt 0:00:02]} 57. Kf1 Nd3 {[%emt 0:00:01] White got outplayed after the opening.   Weighted Error Value: White=0.73/Black=0.49} (57... Ng4 $142 58. Ke2 Rxf2+ 59. Kd1 Ne3+ 60. Kc1 Rc2+ 61. Kb1 Nd2+ 62. Ka1 Nxf5 63. Ng7 Nxg7 64. h5 e3 65. h6 e2 66. hxg7 e1=Q#) 0-1

[Event "Superbet Blitz Poland 2023"]
[Site "Warsaw"]
[Date "2023.05.25"]
[Round "11"]
[White "Carlsen, Magnus"]
[Black "So, Wesley"]
[Result "1-0"]
[ECO "A06"]
[WhiteElo "2853"]
[BlackElo "2760"]
[Annotator "TA"]
[PlyCount "111"]
[EventDate "2023.05.24"]
[EventType "tourn"]
[EventCountry "POL"]
[SourceTitle "playchess.com"]
[Source "ChessBase"]
[SourceQuality "1"]
[TimeControl "300+2"]

{[%evp 9,111,0,0,0,0,0,4,12,4,7,4,4,4,6,6,6,12,0,6,0,0,-16,-17,-12,-9,-6,0,0,0,-18,0,0,0,0,29,32,10,0,0,0,0,0,122,103,407,407,381,158,1096,1093,1014,672,650,353,333,200,209,201,200,200,192,199,189,180,186,177,175,174,170,161,181,175,179,133,195,139,179,147,417,393,29993,327,377,284,1483,675,769,737,617,0,451,452,1014,768,1906,2247,1473,1945,29978,8,6784,6784,6522,4091]} 1. b3 {[%emt 0:00:08]} d5 {[%emt 0:00:12]} 2. Nf3 {[%emt 0:00:03]} Nf6 {[%emt 0:00:21]} 3. Bb2 {[%emt 0:00:02]} c5 {[%emt 0:00:02]} (3... h6 4. g3 Bf5 5. d3 c5 6. Bg2 Nc6 7. Ne5 Nxe5 8. Bxe5 e6 9. Nd2 Be7 10. e4 Bg6 11. O-O O-O 12. Qe2 Bh5 13. f3 Nd7 {1-0 Carlsen,M (2855)-So,W (2778) Meltwater Tour Final rapid 2021 (9.1)}) 4. e3 {[%emt 0:00:02]} e6 {[%emt 0:00:09]} 5. Bb5+ {[%emt 0:00:33]} Nbd7 {[%emt 0:00:10]} 6. O-O {[%emt 0:00:03] A06: Réti Opening: 1 Nf3 d5.} a6 {[%emt 0:00:13] outshines the older 6...Bd6.} 7. Be2 {[%emt 0:00:05] [#]} Be7 $146 {[%emt 0:00:42]} ({Predecessor:} 7... Bd6 8. d4 cxd4 9. exd4 O-O 10. Bd3 Qc7 11. Nbd2 b6 12. Re1 Bb7 13. a3 Rfd8 {0-1 Sadhwani,R (2627)-Deac,B (2700) Titled Tuesday intern op 18th Apr Early blitz 2023 (11)}) 8. c4 {[%emt 0:00:02] The position is equal.} O-O {[%emt 0:00:03]} 9. cxd5 {[%emt 0:00:06]} Nxd5 {[%emt 0:00:03]} 10. Nc3 {[%emt 0:00:01]} Nxc3 {[%emt 0:00:02]} 11. dxc3 {[%emt 0:00:07]} b6 {[%emt 0:00:09]} 12. Qc2 {[%emt 0:00:24]} Bb7 {[%emt 0:00:02]} 13. Rfd1 {[%emt 0:00:20] Threatening Ne5.} Qc7 {[%emt 0:00:01] Wards off Ne5} 14. Bd3 {[%emt 0:00:03]} g6 {[%emt 0:00:18]} 15. Be4 {[%emt 0:00:02]} c4 {[%emt 0:00:17]} 16. Bxb7 {[%emt 0:00:12]} Qxb7 {[%emt 0:00:01]} 17. Rd4 {[%emt 0:00:03]} (17. Nd2 $5 {[%cal Rd2c4]}) 17... cxb3 {[%emt 0:00:17]} 18. axb3 {[%emt 0:00:01]} Bf6 {[%emt 0:00:04]} 19. Rd2 {[%emt 0:00:18]} Nc5 {[%emt 0:00:07]} 20. c4 {[%emt 0:00:02]} Bxb2 {[%emt 0:00:14]} 21. Qxb2 {[%emt 0:00:01]} Rad8 {[%emt 0:00:03]} 22. Rxd8 {[%emt 0:00:09]} Rxd8 {[%emt 0:00:00]} 23. h4 {[%emt 0:00:03]} Qe7 {[%emt 0:00:15] Against Qf6} 24. h5 {[%emt 0:01:18]} gxh5 {[%emt 0:00:06]} 25. Qe5 {[%emt 0:00:02]} Nxb3 {[%emt 0:00:12]} (25... h4 $11 {keeps the balance.}) 26. Rxa6 $16 {[%emt 0:00:04]} Qc5 $2 {[%emt 0:00:31][%mdl 8192]} (26... f6 $16 {is tougher.} 27. Qg3+ (27. Qxh5 Rd1+ 28. Kh2 Qc7+ 29. g3 Qb7 $14) 27... Qg7) 27. Qg3+ $18 {[%emt 0:00:25]} Kf8 {[%emt 0:00:05]} 28. Ng5 {[%emt 0:00:16]} (28. Qf4 Qf5 $18) (28. Ra7 $18 {is more deadly. Strongly threatening Ne5.} Qf5 29. Qh4 Rd1+ 30. Kh2) 28... h6 $2 {[%emt 0:00:47]} (28... Qf5 $16) 29. Nh7+ {[%emt 0:00:13]} Ke7 {[%emt 0:00:04]} 30. Ra7+ {[%emt 0:00:32]} Rd7 {[%emt 0:00:02]} 31. Qh4+ {[%emt 0:00:01]} Kd6 {[%emt 0:00:02]} 32. Qf4+ {[%emt 0:00:02]} Ke7 {[%emt 0:00:13]} 33. Qf6+ {[%emt 0:00:10]} Kd6 {[#]} 34. Rxd7+ {[%emt 0:00:01]} Kxd7 {[%emt 0:00:01]} 35. Qxf7+ {[%emt 0:00:01][%mdl 4096] Endgame KQN-KQN} (35. Qxh6 Nd2 $11) 35... Qe7 {[%emt 0:00:07]} 36. Nf6+ {[%emt 0:00:07]} Kd8 {[%emt 0:00:02]} 37. Qg6 {[%emt 0:00:04]} (37. Qxh5 $6 Qxf6 38. Qd1+ Kc7 39. Qxb3 Qa1+ 40. Kh2 Qf6 $16) 37... Na5 {[%emt 0:00:08]} 38. Qxh6 {[%emt 0:00:08]} Nxc4 {[%emt 0:00:02]} 39. Nxh5 {[%emt 0:00:01]} b5 {[%emt 0:00:01]} 40. Nf4 {[%emt 0:00:02]} Kd7 {[%emt 0:00:02]} 41. Qh5 {[%emt 0:00:02]} ({White should play} 41. Qh8 $18) 41... Kc6 {[%emt 0:00:02]} (41... e5 $16) 42. Qf3+ {[%emt 0:00:01]} (42. Qg6 $18) 42... Kb6 {[%emt 0:00:02]} 43. Qe4 {[%emt 0:00:01] And now Nd5+ would win.} Ka5 $2 {[%emt 0:00:09][%mdl 8192]} (43... Kc5 $16 {was called for.} 44. Qg6 (44. Nxe6+ Kd6 $16) 44... Ne5) 44. Nxe6 {[%emt 0:00:02]} Qb4 $2 {[%emt 0:00:04]} (44... Qd7 $18 45. Nd4 Kb6) 45. Qc2 $2 {[%emt 0:00:04]} (45. Qa8+ {mates} Kb6 46. Qb8+ Kc6 47. Qc7+ Kd5 48. Nf4+ Ke4 49. Qc6+ Kf5 50. Qg6+ Ke5 51. Qe6#) 45... Qe1+ {[%emt 0:00:01]} 46. Kh2 {[%emt 0:00:01]} Nd2 $2 {[%emt 0:00:01]} (46... Qd2 47. Qxd2+ Nxd2) 47. Kg3 {[%emt 0:00:03]} (47. Nd4 $142 Nf1+ 48. Kh3 Nxe3 49. Qa2+ Kb6 50. Qe6+ {[%mdl 64] Pin, Double Attack} Ka5 51. Qxe3 Qh1+ 52. Kg3) 47... Nf1+ {[%emt 0:00:01]} 48. Kf4 {[%emt 0:00:01]} Nd2 {[%emt 0:00:01]} 49. Kg3 {[%emt 0:00:03]} Nf1+ $1 {[%emt 0:00:00]} 50. Kg4 {[%emt 0:00:01] Threatens to win with Nd4.} Nd2 {[%emt 0:00:01]} (50... Qd2 $142 51. Qc7+ Ka4) 51. Qc3+ {[%emt 0:00:01]} b4 {[%emt 0:00:01]} 52. Qc5+ {[%emt 0:00:01]} Ka4 {[%emt 0:00:01]} 53. Nd4 {[%emt 0:00:01][%cal Rc5a7]} b3 {[%emt 0:00:09]} 54. Qb5+ {[%emt 0:00:01]} (54. Nc6 $142 Nc4 55. Qxc4+ Ka3 56. Nd4 Qd1+ 57. Kf4 Ka2 58. Qxb3+ Qxb3 59. Nxb3) 54... Ka3 {[%emt 0:00:00] [#]} 55. Qxb3+ $3 {[%emt 0:00:01][%mdl 576] Remove Defender} Nxb3 {[%emt 0:00:02]} 56. Nc2+ {[%emt 0:00:00] An interesting game.   Weighted Error Value: White=0.73/Black=0.46} 1-0